[Event "*** Titled Tuesday Blitz"]
[Site "Chess.com"]
[Date "2020.04.14"]
[Round "2"]
[White "Trankuilizer"]
[Black "GuerrieroFromLevant"]
[Result "1-0"]
[WhiteElo "2656"]
[BlackElo "2351"]
[TimeControl "180+1"]
[EndTime "10:12:10 PDT"]
[Termination "Trankuilizer won by resignation"]

1. e4 {[%clk 0:03:00.9]} 1... e6 {[%clk 0:03:00]} 2. d4 {[%clk 0:03:00.8]} 2...
d5 {[%clk 0:03:00.4]} 3. Nd2 {[%clk 0:03:01.2]} 3... c5 {[%clk 0:02:59.7]} 4.
exd5 {[%clk 0:03:01.4]} 4... exd5 {[%clk 0:03:00.6]} 5. Ngf3 {[%clk 0:03:01.4]}
5... Nf6 {[%clk 0:03:00.8]} 6. Bb5+ {[%clk 0:02:59.2]} 6... Bd7 {[%clk
0:03:00.5]} 7. Bxd7+ {[%clk 0:02:58.1]} 7... Nbxd7 {[%clk 0:03:01.4]} 8. O-O
{[%clk 0:02:58.7]} 8... Be7 {[%clk 0:03:01.7]} 9. dxc5 {[%clk 0:02:57.1]} 9...
Nxc5 {[%clk 0:03:01.7]} 10. Nb3 {[%clk 0:02:55.4]} 10... O-O {[%clk 0:03:00.3]}
11. Be3 {[%clk 0:02:51.7]} 11... Ne6 {[%clk 0:02:56.3]} 12. c3 {[%clk
0:02:46.3]} 12... a5 {[%clk 0:02:51.4]} 13. a4 {[%clk 0:02:43.5]} 13... Rc8
{[%clk 0:02:47.2]} 14. h3 {[%clk 0:02:42.9]} 14... Rc4 {[%clk 0:02:46.2]} 15.
Nbd4 {[%clk 0:02:39.4]} 15... Qd7 {[%clk 0:02:44.1]} 16. Ne5 {[%clk 0:02:33.9]}
16... Qc8 {[%clk 0:02:38.4]} 17. Nxc4 {[%clk 0:02:33.1]} 17... Qxc4 {[%clk
0:02:38.3]} 18. Qe2 {[%clk 0:02:32.3]} 18... Nxd4 {[%clk 0:02:34.4]} 19. Qxc4
{[%clk 0:02:31.6]} 19... Nf3+ {[%clk 0:02:34.4]} 20. gxf3 {[%clk 0:02:32]} 20...
dxc4 {[%clk 0:02:35.3]} 21. Rfd1 {[%clk 0:02:32.2]} 21... Rd8 {[%clk 0:02:33.5]}
22. Rxd8+ {[%clk 0:02:31.5]} 22... Bxd8 {[%clk 0:02:34.4]} 23. Rd1 {[%clk
0:02:30.9]} 1-0

[Event "*** Titled Tuesday Blitz"]
[Site "Chess.com"]
[Date "2020.04.14"]
[Round "2"]
[White "IlzeBerzina"]
[Black "milovanratkovic"]
[Result "0-1"]
[WhiteElo "2231"]
[BlackElo "2490"]
[TimeControl "180+1"]
[EndTime "10:12:27 PDT"]
[Termination "milovanratkovic won by checkmate"]

1. e4 {[%clk 0:03:00.9]} 1... c6 {[%clk 0:03:00.9]} 2. Nc3 {[%clk 0:02:59.7]}
2... d5 {[%clk 0:03:01.8]} 3. Nf3 {[%clk 0:02:58.8]} 3... dxe4 {[%clk
0:03:01.8]} 4. Nxe4 {[%clk 0:02:58.8]} 4... Nf6 {[%clk 0:03:02.7]} 5. Nxf6+
{[%clk 0:02:56.9]} 5... exf6 {[%clk 0:03:03.6]} 6. d4 {[%clk 0:02:56.8]} 6...
Bd6 {[%clk 0:02:47.6]} 7. Bd3 {[%clk 0:02:51.7]} 7... O-O {[%clk 0:02:48.5]} 8.
O-O {[%clk 0:02:50.9]} 8... Re8 {[%clk 0:02:49.4]} 9. c4 {[%clk 0:02:45.8]} 9...
Nd7 {[%clk 0:02:49.9]} 10. Be3 {[%clk 0:02:40.2]} 10... Nf8 {[%clk 0:02:50.3]}
11. Re1 {[%clk 0:02:36]} 11... Ng6 {[%clk 0:02:49.2]} 12. Qc2 {[%clk 0:02:33.2]}
12... Bg4 {[%clk 0:02:48.1]} 13. Be2 {[%clk 0:02:31.4]} 13... Qd7 {[%clk
0:02:48.2]} 14. Rad1 {[%clk 0:02:26.3]} 14... Bh3 {[%clk 0:02:42.2]} 15. gxh3
{[%clk 0:02:22.2]} 15... Qxh3 {[%clk 0:02:43.1]} 16. d5 {[%clk 0:02:10.1]} 16...
Nh4 {[%clk 0:02:37.1]} 17. Nxh4 {[%clk 0:01:58.7]} 17... Qxh2+ {[%clk
0:02:34.4]} 18. Kf1 {[%clk 0:01:57.2]} 18... Qh1# {[%clk 0:02:35.3]} 0-1

[Event "*** Titled Tuesday Blitz"]
[Site "Chess.com"]
[Date "2020.04.14"]
[Round "2"]
[White "yawnpawn"]
[Black "aa175"]
[Result "0-1"]
[WhiteElo "1746"]
[BlackElo "2362"]
[TimeControl "180+1"]
[EndTime "10:12:36 PDT"]
[Termination "aa175 won by resignation"]

1. e4 {[%clk 0:03:00.9]} 1... c5 {[%clk 0:03:00]} 2. Nf3 {[%clk 0:03:00.3]} 2...
d6 {[%clk 0:03:00.5]} 3. Bb5+ {[%clk 0:02:59.8]} 3... Nd7 {[%clk 0:03:00.2]} 4.
O-O {[%clk 0:02:57.8]} 4... a6 {[%clk 0:02:59.5]} 5. Bd3 {[%clk 0:02:57.2]} 5...
Ngf6 {[%clk 0:02:54.6]} 6. c3 {[%clk 0:02:56]} 6... e6 {[%clk 0:02:55.1]} 7. Re1
{[%clk 0:02:51.7]} 7... b5 {[%clk 0:02:53.9]} 8. Bc2 {[%clk 0:02:50.9]} 8... c4
{[%clk 0:02:53.2]} 9. a4 {[%clk 0:02:40.1]} 9... Bb7 {[%clk 0:02:52.6]} 10. b3
{[%clk 0:02:38.9]} 10... cxb3 {[%clk 0:02:41.6]} 11. Bd3 {[%clk 0:02:31.1]}
11... bxa4 {[%clk 0:02:37.3]} 12. Rxa4 {[%clk 0:02:29.9]} 12... Nc5 {[%clk
0:02:37.7]} 13. Rd4 {[%clk 0:02:26]} 13... Nxd3 {[%clk 0:02:35.4]} 14. Rxd3
{[%clk 0:02:25.5]} 14... Bxe4 {[%clk 0:02:35.6]} 15. Rxe4 {[%clk 0:02:24.8]}
15... Nxe4 {[%clk 0:02:35.8]} 16. Qxb3 {[%clk 0:02:24.3]} 16... Nc5 {[%clk
0:02:35.2]} 17. Qc4 {[%clk 0:02:20.2]} 17... Nxd3 {[%clk 0:02:34.8]} 18. Qxd3
{[%clk 0:02:19.7]} 18... Be7 {[%clk 0:02:35.1]} 19. Na3 {[%clk 0:02:18.5]} 19...
O-O {[%clk 0:02:35.2]} 20. Nc4 {[%clk 0:02:18.4]} 20... d5 {[%clk 0:02:35.7]}
21. Nce5 {[%clk 0:02:18.4]} 21... Bd6 {[%clk 0:02:35.7]} 22. Ng4 {[%clk
0:02:16.9]} 22... a5 {[%clk 0:02:30.3]} 23. c4 {[%clk 0:02:14.7]} 23... dxc4
{[%clk 0:02:29.4]} 24. Qxc4 {[%clk 0:02:14.9]} 24... Rc8 {[%clk 0:02:29.7]} 0-1

[Event "*** Titled Tuesday Blitz"]
[Site "Chess.com"]
[Date "2020.04.14"]
[Round "2"]
[White "fmshawnrl123"]
[Black "realmadridtv"]
[Result "1-0"]
[WhiteElo "2778"]
[BlackElo "2501"]
[TimeControl "180+1"]
[EndTime "10:12:43 PDT"]
[Termination "fmshawnrl123 won by resignation"]

1. c4 {[%clk 0:03:00.9]} 1... Nf6 {[%clk 0:02:59.1]} 2. Nc3 {[%clk 0:03:00.1]}
2... g6 {[%clk 0:02:53.1]} 3. e4 {[%clk 0:02:59]} 3... d6 {[%clk 0:02:52.6]} 4.
g3 {[%clk 0:02:59.1]} 4... Bg7 {[%clk 0:02:52.8]} 5. Bg2 {[%clk 0:03:00]} 5...
c5 {[%clk 0:02:52.7]} 6. Nge2 {[%clk 0:03:00.8]} 6... O-O {[%clk 0:02:53.1]} 7.
O-O {[%clk 0:03:01.7]} 7... Nc6 {[%clk 0:02:53.5]} 8. d3 {[%clk 0:03:02.6]} 8...
Ne8 {[%clk 0:02:52.8]} 9. Be3 {[%clk 0:03:03.1]} 9... Nc7 {[%clk 0:02:53.1]} 10.
d4 {[%clk 0:02:58.4]} 10... cxd4 {[%clk 0:02:49.7]} 11. Nxd4 {[%clk 0:02:59.3]}
11... Nxd4 {[%clk 0:02:41.7]} 12. Bxd4 {[%clk 0:03:00.2]} 12... e5 {[%clk
0:02:31.3]} 13. Be3 {[%clk 0:02:59.6]} 13... Be6 {[%clk 0:02:16]} 14. Qe2 {[%clk
0:02:56.3]} 14... a6 {[%clk 0:02:08.8]} 15. Rfd1 {[%clk 0:02:56]} 15... Qe7
{[%clk 0:02:08.1]} 16. Rac1 {[%clk 0:02:55.9]} 16... Rfd8 {[%clk 0:02:06.3]} 17.
b3 {[%clk 0:02:55.4]} 17... Rac8 {[%clk 0:02:04.7]} 18. Bb6 {[%clk 0:02:54.9]}
18... Bd7 {[%clk 0:01:50]} 19. Bxc7 {[%clk 0:02:53.8]} 19... Rxc7 {[%clk
0:01:38.3]} 20. Nd5 {[%clk 0:02:53.1]} 1-0

[Event "*** Titled Tuesday Blitz"]
[Site "Chess.com"]
[Date "2020.04.14"]
[Round "2"]
[White "bmt011"]
[Black "BasilSmash"]
[Result "0-1"]
[WhiteElo "1981"]
[BlackElo "2378"]
[TimeControl "180+1"]
[EndTime "10:12:49 PDT"]
[Termination "BasilSmash won by resignation"]

1. d4 {[%clk 0:03:00.9]} 1... d5 {[%clk 0:02:58.8]} 2. Bf4 {[%clk 0:03:00.3]}
2... c5 {[%clk 0:02:57.2]} 3. e3 {[%clk 0:02:55.7]} 3... Nc6 {[%clk 0:02:54.3]}
4. Nf3 {[%clk 0:02:36.7]} 4... Nf6 {[%clk 0:02:48.9]} 5. Nbd2 {[%clk 0:02:21.5]}
5... Qb6 {[%clk 0:02:46.8]} 6. dxc5 {[%clk 0:02:21.2]} 6... Qxb2 {[%clk
0:02:46.5]} 7. Rb1 {[%clk 0:02:16.1]} 7... Qc3 {[%clk 0:02:43.6]} 8. Bb5 {[%clk
0:02:07.1]} 8... g6 {[%clk 0:02:43.1]} 9. O-O {[%clk 0:02:03.2]} 9... Bg7 {[%clk
0:02:39.6]} 10. Nb3 {[%clk 0:01:40.4]} 10... O-O {[%clk 0:02:35.9]} 11. Be5
{[%clk 0:01:38.6]} 11... Nxe5 {[%clk 0:02:33.7]} 0-1

[Event "*** Titled Tuesday Blitz"]
[Site "Chess.com"]
[Date "2020.04.14"]
[Round "2"]
[White "BillieKimbah"]
[Black "TudorAnton"]
[Result "1-0"]
[WhiteElo "2833"]
[BlackElo "2571"]
[TimeControl "180+1"]
[EndTime "10:13:03 PDT"]
[Termination "BillieKimbah won by resignation"]

1. c4 {[%clk 0:03:00.9]} 1... Nf6 {[%clk 0:02:57.1]} 2. Nc3 {[%clk 0:03:00.4]}
2... e6 {[%clk 0:02:55.3]} 3. Nf3 {[%clk 0:03:00]} 3... c5 {[%clk 0:02:52.6]} 4.
e3 {[%clk 0:02:55.5]} 4... d5 {[%clk 0:02:52]} 5. d4 {[%clk 0:02:55.1]} 5... Nc6
{[%clk 0:02:50.7]} 6. cxd5 {[%clk 0:02:54.4]} 6... exd5 {[%clk 0:02:50.1]} 7.
Bb5 {[%clk 0:02:54]} 7... cxd4 {[%clk 0:02:48.4]} 8. Nxd4 {[%clk 0:02:53.7]}
8... Bd7 {[%clk 0:02:48.5]} 9. O-O {[%clk 0:02:53.6]} 9... Be7 {[%clk
0:02:45.1]} 10. b3 {[%clk 0:02:50.2]} 10... O-O {[%clk 0:02:44.4]} 11. Bb2
{[%clk 0:02:49.7]} 11... Rc8 {[%clk 0:02:44.8]} 12. Rc1 {[%clk 0:02:48.7]} 12...
a6 {[%clk 0:02:41.3]} 13. Be2 {[%clk 0:02:34.9]} 13... Re8 {[%clk 0:02:41.2]}
14. Bf3 {[%clk 0:02:32.6]} 14... Be6 {[%clk 0:02:33.4]} 15. Nxc6 {[%clk
0:02:31.4]} 15... bxc6 {[%clk 0:02:32.9]} 16. Qd3 {[%clk 0:02:28]} 16... Nd7
{[%clk 0:02:31.5]} 17. Na4 {[%clk 0:02:24.3]} 17... a5 {[%clk 0:02:27.4]} 18.
Rfd1 {[%clk 0:02:18.7]} 18... Bf8 {[%clk 0:02:25.5]} 19. Qa6 {[%clk 0:02:16.7]}
19... c5 {[%clk 0:02:08.4]} 20. Bxd5 {[%clk 0:02:08.3]} 20... Nb8 {[%clk
0:02:00.7]} 21. Qc4 {[%clk 0:02:05.2]} 1-0

[Event "*** Titled Tuesday Blitz"]
[Site "Chess.com"]
[Date "2020.04.14"]
[Round "2"]
[White "Egorov_Pavel"]
[Black "hongnhung1234"]
[Result "1-0"]
[WhiteElo "2414"]
[BlackElo "2140"]
[TimeControl "180+1"]
[EndTime "10:13:07 PDT"]
[Termination "Egorov_Pavel won by checkmate"]

1. d4 {[%clk 0:03:00.7]} 1... f5 {[%clk 0:03:00]} 2. c4 {[%clk 0:03:01]} 2...
Nf6 {[%clk 0:03:00.1]} 3. Nc3 {[%clk 0:03:01.5]} 3... g6 {[%clk 0:03:00.5]} 4.
h4 {[%clk 0:03:02.1]} 4... Bg7 {[%clk 0:03:00.8]} 5. h5 {[%clk 0:03:02.7]} 5...
Nxh5 {[%clk 0:03:00.2]} 6. e4 {[%clk 0:03:03.2]} 6... O-O {[%clk 0:02:47.2]} 7.
exf5 {[%clk 0:03:02.8]} 7... d6 {[%clk 0:02:32.8]} 8. fxg6 {[%clk 0:02:59.7]}
8... hxg6 {[%clk 0:02:32.8]} 9. Bd3 {[%clk 0:03:00.3]} 9... Bxd4 {[%clk
0:02:23.1]} 10. Nf3 {[%clk 0:02:52.3]} 10... Bxf2+ {[%clk 0:02:03.1]} 11. Kxf2
{[%clk 0:02:50.6]} 11... Nc6 {[%clk 0:02:03.1]} 12. Bxg6 {[%clk 0:02:46.4]}
12... Ng7 {[%clk 0:02:01.5]} 13. Rh8+ {[%clk 0:02:25.7]} 13... Kxh8 {[%clk
0:01:59.6]} 14. Qh1+ {[%clk 0:02:26.2]} 14... Nh5 {[%clk 0:01:58.3]} 15. Qxh5+
{[%clk 0:02:26.6]} 15... Kg7 {[%clk 0:01:58.6]} 16. Qh6+ {[%clk 0:02:12.4]}
16... Kf6 {[%clk 0:01:56.4]} 17. Nd5+ {[%clk 0:02:10.4]} 17... Ke6 {[%clk
0:01:54.5]} 18. Qh3+ {[%clk 0:02:10.3]} 18... Rf5 {[%clk 0:01:49.6]} 19. Qxf5#
{[%clk 0:02:10.7]} 1-0

[Event "*** Titled Tuesday Blitz"]
[Site "Chess.com"]
[Date "2020.04.14"]
[Round "2"]
[White "KarstenHansch"]
[Black "Cuchulin"]
[Result "1-0"]
[WhiteElo "2406"]
[BlackElo "2119"]
[TimeControl "180+1"]
[EndTime "10:13:31 PDT"]
[Termination "KarstenHansch won by checkmate"]

1. e4 {[%clk 0:02:58]} 1... c5 {[%clk 0:03:00]} 2. Nf3 {[%clk 0:02:57.8]} 2...
Nc6 {[%clk 0:03:00.5]} 3. Bb5 {[%clk 0:02:57.8]} 3... g6 {[%clk 0:03:00.4]} 4.
O-O {[%clk 0:02:57.3]} 4... Bg7 {[%clk 0:02:59.2]} 5. Re1 {[%clk 0:02:57.4]}
5... Nf6 {[%clk 0:02:59.3]} 6. e5 {[%clk 0:02:57.3]} 6... Nd5 {[%clk 0:02:59.5]}
7. Nc3 {[%clk 0:02:58.2]} 7... Nxc3 {[%clk 0:02:59.3]} 8. dxc3 {[%clk
0:02:59.1]} 8... O-O {[%clk 0:02:59.1]} 9. Qd5 {[%clk 0:02:58.5]} 9... a6 {[%clk
0:02:55.2]} 10. Bxc6 {[%clk 0:02:55.8]} 10... dxc6 {[%clk 0:02:54.9]} 11. Qxc5
{[%clk 0:02:55.6]} 11... Re8 {[%clk 0:02:52.3]} 12. Bg5 {[%clk 0:02:52.8]} 12...
Qc7 {[%clk 0:02:48.7]} 13. Nd4 {[%clk 0:02:37.8]} 13... Bf5 {[%clk 0:02:37.1]}
14. Nxf5 {[%clk 0:02:33.8]} 14... gxf5 {[%clk 0:02:38]} 15. e6 {[%clk
0:02:33.7]} 15... f6 {[%clk 0:02:29]} 16. Bh4 {[%clk 0:02:29.5]} 16... f4 {[%clk
0:02:28.3]} 17. Rad1 {[%clk 0:02:25.4]} 17... Rad8 {[%clk 0:02:24.2]} 18. h3
{[%clk 0:02:16.4]} 18... Rxd1 {[%clk 0:02:23.6]} 19. Rxd1 {[%clk 0:02:16.1]}
19... Rd8 {[%clk 0:02:21.9]} 20. Rxd8+ {[%clk 0:02:15]} 20... Qxd8 {[%clk
0:02:21.9]} 21. Qd4 {[%clk 0:02:14.6]} 21... Qe8 {[%clk 0:02:04.7]} 22. Qxf4
{[%clk 0:02:05.4]} 22... Qg6 {[%clk 0:02:04]} 23. Qd2 {[%clk 0:02:02.3]} 23...
Qe4 {[%clk 0:02:02.2]} 24. Qd7 {[%clk 0:01:53.5]} 24... Qxh4 {[%clk 0:01:59.2]}
25. Qe8+ {[%clk 0:01:53]} 25... Bf8 {[%clk 0:01:57]} 26. Qf7+ {[%clk 0:01:53.2]}
26... Kh8 {[%clk 0:01:57.1]} 27. Qxf8# {[%clk 0:01:54.1]} 1-0

[Event "*** Titled Tuesday Blitz"]
[Site "Chess.com"]
[Date "2020.04.14"]
[Round "2"]
[White "przemekpiotrowski"]
[Black "DucksParadise"]
[Result "1-0"]
[WhiteElo "2400"]
[BlackElo "2099"]
[TimeControl "180+1"]
[EndTime "10:13:34 PDT"]
[Termination "przemekpiotrowski won by resignation"]

1. e4 {[%clk 0:03:00.9]} 1... e6 {[%clk 0:02:51.1]} 2. d3 {[%clk 0:02:57.8]}
2... d5 {[%clk 0:02:49.8]} 3. Nd2 {[%clk 0:02:58.7]} 3... c5 {[%clk 0:02:49.7]}
4. Ngf3 {[%clk 0:02:59.2]} 4... Nc6 {[%clk 0:02:49.3]} 5. g3 {[%clk 0:02:59.7]}
5... Bd6 {[%clk 0:02:49]} 6. Bg2 {[%clk 0:03:00.2]} 6... Nge7 {[%clk 0:02:48.7]}
7. O-O {[%clk 0:03:00.7]} 7... O-O {[%clk 0:02:48.1]} 8. Re1 {[%clk 0:03:00.2]}
8... Qc7 {[%clk 0:02:47.9]} 9. Qe2 {[%clk 0:02:59.9]} 9... f6 {[%clk 0:02:47.9]}
10. c3 {[%clk 0:02:56.1]} 10... Bd7 {[%clk 0:02:46.2]} 11. d4 {[%clk 0:02:56.2]}
11... cxd4 {[%clk 0:02:34.7]} 12. cxd4 {[%clk 0:02:56]} 12... dxe4 {[%clk
0:02:15.3]} 13. Nxe4 {[%clk 0:02:55.2]} 13... Nd5 {[%clk 0:02:16.2]} 14. Nxd6
{[%clk 0:02:52.9]} 14... Qxd6 {[%clk 0:02:17.1]} 15. b3 {[%clk 0:02:48.3]} 15...
Rac8 {[%clk 0:02:07.4]} 16. Bb2 {[%clk 0:02:48.2]} 16... Ncb4 {[%clk 0:01:48.5]}
17. Nd2 {[%clk 0:02:37.2]} 17... Nc3 {[%clk 0:01:01.8]} 18. Bxc3 {[%clk
0:02:34.6]} 18... Rxc3 {[%clk 0:01:02.7]} 19. Ne4 {[%clk 0:02:34.7]} 1-0

[Event "*** Titled Tuesday Blitz"]
[Site "Chess.com"]
[Date "2020.04.14"]
[Round "2"]
[White "mshuaau0"]
[Black "stoleriu"]
[Result "0-1"]
[WhiteElo "2210"]
[BlackElo "2473"]
[TimeControl "180+1"]
[EndTime "10:13:37 PDT"]
[Termination "stoleriu won by resignation"]

1. e4 {[%clk 0:03:00.9]} 1... e6 {[%clk 0:03:00.3]} 2. d4 {[%clk 0:02:59.5]}
2... d5 {[%clk 0:03:01.2]} 3. Nd2 {[%clk 0:02:58.5]} 3... Be7 {[%clk 0:03:00.8]}
4. Ngf3 {[%clk 0:02:58.2]} 4... Nf6 {[%clk 0:03:00]} 5. Bd3 {[%clk 0:02:57.6]}
5... c5 {[%clk 0:02:59.6]} 6. exd5 {[%clk 0:02:56.9]} 6... Qxd5 {[%clk
0:02:55.2]} 7. Bc4 {[%clk 0:02:56.2]} 7... Qd8 {[%clk 0:02:48.8]} 8. dxc5 {[%clk
0:02:49]} 8... Bxc5 {[%clk 0:02:46.2]} 9. O-O {[%clk 0:02:49.5]} 9... O-O {[%clk
0:02:45.2]} 10. Nb3 {[%clk 0:02:47.5]} 10... Be7 {[%clk 0:02:45.3]} 11. Qxd8
{[%clk 0:02:45.9]} 11... Rxd8 {[%clk 0:02:46.2]} 12. Bg5 {[%clk 0:02:43.4]}
12... Nc6 {[%clk 0:02:43.9]} 13. Rfd1 {[%clk 0:02:36.8]} 13... Bd7 {[%clk
0:02:29]} 14. c3 {[%clk 0:02:35.6]} 14... Rac8 {[%clk 0:02:20.5]} 15. Be2 {[%clk
0:02:26.5]} 15... h6 {[%clk 0:02:11.5]} 16. Bxf6 {[%clk 0:02:24.5]} 16... Bxf6
{[%clk 0:02:12.4]} 17. Nc5 {[%clk 0:02:23.7]} 17... Rc7 {[%clk 0:02:09.4]} 18.
Nxd7 {[%clk 0:02:20.9]} 18... Rcxd7 {[%clk 0:02:10.3]} 19. Rxd7 {[%clk
0:02:19.6]} 19... Rxd7 {[%clk 0:02:11.2]} 20. Rd1 {[%clk 0:02:19.3]} 20... Rxd1+
{[%clk 0:02:07.1]} 21. Bxd1 {[%clk 0:02:20.2]} 21... Kf8 {[%clk 0:02:07.9]} 22.
Kf1 {[%clk 0:02:19.8]} 22... Ke7 {[%clk 0:02:08.2]} 23. Ke2 {[%clk 0:02:19.9]}
23... Kd6 {[%clk 0:02:09.1]} 24. Kd3 {[%clk 0:02:20.2]} 24... g5 {[%clk
0:02:00.3]} 25. h3 {[%clk 0:02:18.2]} 25... Bg7 {[%clk 0:01:58.9]} 26. b4 {[%clk
0:02:15.6]} 26... f5 {[%clk 0:01:58.1]} 27. Bb3 {[%clk 0:02:00.6]} 27... e5
{[%clk 0:01:55.1]} 28. a4 {[%clk 0:01:58.5]} 28... e4+ {[%clk 0:01:53.5]} 0-1

[Event "*** Titled Tuesday Blitz"]
[Site "Chess.com"]
[Date "2020.04.14"]
[Round "2"]
[White "Belgrade"]
[Black "zmeeed67"]
[Result "1/2-1/2"]
[WhiteElo "2079"]
[BlackElo "2375"]
[TimeControl "180+1"]
[EndTime "10:13:50 PDT"]
[Termination "Game drawn by repetition"]

1. e4 {[%clk 0:03:00.9]} 1... Nf6 {[%clk 0:02:57.5]} 2. e5 {[%clk 0:03:00.6]}
2... Nd5 {[%clk 0:02:56.7]} 3. d4 {[%clk 0:03:01.5]} 3... d6 {[%clk 0:02:54]} 4.
Nf3 {[%clk 0:03:01.8]} 4... dxe5 {[%clk 0:02:53.7]} 5. Nxe5 {[%clk 0:03:02.7]}
5... Nd7 {[%clk 0:02:53.3]} 6. Nxd7 {[%clk 0:03:03.2]} 6... Bxd7 {[%clk
0:02:52.6]} 7. Be2 {[%clk 0:03:02.6]} 7... Bf5 {[%clk 0:02:48.3]} 8. c4 {[%clk
0:02:50.6]} 8... Nf6 {[%clk 0:02:44.8]} 9. Nc3 {[%clk 0:02:49.3]} 9... c6 {[%clk
0:02:44.3]} 10. O-O {[%clk 0:02:43.4]} 10... e6 {[%clk 0:02:41.5]} 11. Be3
{[%clk 0:02:34.7]} 11... Be7 {[%clk 0:02:40]} 12. Qb3 {[%clk 0:02:30.9]} 12...
Qb6 {[%clk 0:02:22]} 13. Qxb6 {[%clk 0:02:27]} 13... axb6 {[%clk 0:02:22.9]} 14.
Rfd1 {[%clk 0:02:25.1]} 14... O-O {[%clk 0:02:14]} 15. b3 {[%clk 0:02:22.7]}
15... Nd7 {[%clk 0:01:22.8]} 16. Bd3 {[%clk 0:02:15.9]} 16... Bxd3 {[%clk
0:01:21.1]} 17. Rxd3 {[%clk 0:02:16.8]} 17... Bf6 {[%clk 0:01:13.6]} 18. Ne4
{[%clk 0:02:15.1]} 18... Be7 {[%clk 0:01:07]} 19. Nc3 {[%clk 0:02:14.8]} 19...
Bf6 {[%clk 0:01:01.1]} 20. Ne4 {[%clk 0:02:14.6]} 20... Be7 {[%clk 0:01:01.1]}
21. Nc3 {[%clk 0:02:14.6]} 1/2-1/2

[Event "*** Titled Tuesday Blitz"]
[Site "Chess.com"]
[Date "2020.04.14"]
[Round "2"]
[White "eCztery"]
[Black "BronceYSueno"]
[Result "1-0"]
[WhiteElo "2379"]
[BlackElo "1929"]
[TimeControl "180+1"]
[EndTime "10:13:51 PDT"]
[Termination "eCztery won by resignation"]

1. e4 {[%clk 0:02:56.2]} 1... c5 {[%clk 0:02:59.5]} 2. b3 {[%clk 0:02:50.4]}
2... e5 {[%clk 0:02:57.9]} 3. Bb2 {[%clk 0:02:48]} 3... d6 {[%clk 0:02:58.3]} 4.
c3 {[%clk 0:02:39.6]} 4... Nc6 {[%clk 0:02:53.4]} 5. Ne2 {[%clk 0:02:32.6]} 5...
g6 {[%clk 0:02:38.7]} 6. d4 {[%clk 0:02:20.6]} 6... exd4 {[%clk 0:02:38.9]} 7.
cxd4 {[%clk 0:02:21.5]} 7... Bg7 {[%clk 0:02:39.2]} 8. Bc3 {[%clk 0:01:53.6]}
8... cxd4 {[%clk 0:02:27.3]} 9. Nxd4 {[%clk 0:01:54.5]} 9... Nxd4 {[%clk
0:02:26.3]} 10. Bxd4 {[%clk 0:01:55.4]} 10... Qa5+ {[%clk 0:02:13.8]} 11. Nc3
{[%clk 0:01:54.1]} 11... Nf6 {[%clk 0:02:00.1]} 12. Bb5+ {[%clk 0:01:52]} 12...
Bd7 {[%clk 0:01:56.2]} 13. Bxd7+ {[%clk 0:01:51.8]} 13... Kxd7 {[%clk
0:01:56.5]} 14. O-O {[%clk 0:01:49.8]} 14... Rhe8 {[%clk 0:01:54.2]} 15. e5
{[%clk 0:01:47.5]} 15... Nd5 {[%clk 0:01:48.9]} 16. Nxd5 {[%clk 0:01:45.4]}
16... Qxd5 {[%clk 0:01:45.2]} 17. e6+ {[%clk 0:01:45.8]} 17... Qxe6 {[%clk
0:01:41.8]} 18. Bxg7 {[%clk 0:01:46.7]} 18... f6 {[%clk 0:01:42.1]} 19. Qd4
{[%clk 0:01:43.6]} 1-0

[Event "*** Titled Tuesday Blitz"]
[Site "Chess.com"]
[Date "2020.04.14"]
[Round "2"]
[White "Zhani-Z"]
[Black "Sjakkerntobi"]
[Result "1-0"]
[WhiteElo "2509"]
[BlackElo "2259"]
[TimeControl "180+1"]
[EndTime "10:13:52 PDT"]
[Termination "Zhani-Z won by checkmate"]

1. e4 {[%clk 0:02:56]} 1... e6 {[%clk 0:02:53.1]} 2. d4 {[%clk 0:02:54.5]} 2...
d5 {[%clk 0:02:54]} 3. Nd2 {[%clk 0:02:54.9]} 3... Nf6 {[%clk 0:02:50.6]} 4. e5
{[%clk 0:02:51.1]} 4... Nfd7 {[%clk 0:02:50.9]} 5. f4 {[%clk 0:02:45.1]} 5... c5
{[%clk 0:02:51.8]} 6. c3 {[%clk 0:02:45.3]} 6... Nc6 {[%clk 0:02:52]} 7. Ndf3
{[%clk 0:02:43.8]} 7... f6 {[%clk 0:02:50.7]} 8. Bd3 {[%clk 0:02:42.6]} 8... f5
{[%clk 0:02:45.5]} 9. Ne2 {[%clk 0:02:41.8]} 9... Be7 {[%clk 0:02:43.7]} 10. O-O
{[%clk 0:02:41.6]} 10... O-O {[%clk 0:02:43.7]} 11. Be3 {[%clk 0:02:40.8]} 11...
Kh8 {[%clk 0:02:40.4]} 12. a3 {[%clk 0:02:32.1]} 12... Rg8 {[%clk 0:02:35.6]}
13. b4 {[%clk 0:02:31.2]} 13... c4 {[%clk 0:02:35.2]} 14. Bc2 {[%clk 0:02:31.4]}
14... Nf8 {[%clk 0:02:31.6]} 15. Kh1 {[%clk 0:02:27.5]} 15... Bd7 {[%clk
0:02:30.8]} 16. Rg1 {[%clk 0:01:54.2]} 16... Be8 {[%clk 0:02:25.4]} 17. Qf1
{[%clk 0:01:45.5]} 17... Bh5 {[%clk 0:02:23.9]} 18. h3 {[%clk 0:01:43.9]} 18...
h6 {[%clk 0:02:14.3]} 19. g4 {[%clk 0:01:43.5]} 19... fxg4 {[%clk 0:02:14.4]}
20. hxg4 {[%clk 0:01:43.1]} 20... Bg6 {[%clk 0:02:14.5]} 21. Bxg6 {[%clk
0:01:37.6]} 21... Nxg6 {[%clk 0:02:13.6]} 22. f5 {[%clk 0:01:38.1]} 22... Nf8
{[%clk 0:02:13.9]} 23. Qh3 {[%clk 0:01:36.7]} 23... Nh7 {[%clk 0:02:04.2]} 24.
Nf4 {[%clk 0:01:35.3]} 24... exf5 {[%clk 0:02:02.5]} 25. Ng6# {[%clk 0:01:34.7]}
1-0

[Event "*** Titled Tuesday Blitz"]
[Site "Chess.com"]
[Date "2020.04.14"]
[Round "2"]
[White "Dr-Bassem"]
[Black "Joshukid"]
[Result "1-0"]
[WhiteElo "2841"]
[BlackElo "2574"]
[TimeControl "180+1"]
[EndTime "10:13:58 PDT"]
[Termination "Dr-Bassem won by resignation"]

1. e4 {[%clk 0:03:00.9]} 1... c6 {[%clk 0:02:59]} 2. d4 {[%clk 0:02:59.2]} 2...
d5 {[%clk 0:02:59]} 3. exd5 {[%clk 0:03:00.1]} 3... cxd5 {[%clk 0:02:58.9]} 4.
c4 {[%clk 0:02:59.3]} 4... Nf6 {[%clk 0:02:47.2]} 5. Nc3 {[%clk 0:02:59.7]} 5...
Nc6 {[%clk 0:02:47.4]} 6. Bg5 {[%clk 0:02:59.7]} 6... dxc4 {[%clk 0:02:47.1]} 7.
Bxc4 {[%clk 0:02:58.9]} 7... h6 {[%clk 0:02:44.8]} 8. Be3 {[%clk 0:02:57.6]}
8... e6 {[%clk 0:02:43]} 9. Nf3 {[%clk 0:02:57.5]} 9... Be7 {[%clk 0:02:43.2]}
10. O-O {[%clk 0:02:57.5]} 10... O-O {[%clk 0:02:41.4]} 11. Qd2 {[%clk
0:02:57.8]} 11... b6 {[%clk 0:02:39.1]} 12. Bd3 {[%clk 0:02:47.7]} 12... Bb7
{[%clk 0:02:37.5]} 13. Rad1 {[%clk 0:02:40.3]} 13... Bd6 {[%clk 0:02:33.2]} 14.
Bxh6 {[%clk 0:02:35.5]} 14... gxh6 {[%clk 0:01:52.6]} 15. Qxh6 {[%clk
0:02:36.4]} 15... Nb4 {[%clk 0:01:52.9]} 16. Ng5 {[%clk 0:02:31.1]} 16... Bf4
{[%clk 0:00:57.3]} 17. Bh7+ {[%clk 0:02:12.9]} 17... Kh8 {[%clk 0:00:56]} 18.
Be4+ {[%clk 0:02:13.4]} 1-0